bitfinex-derivatives/quotes_SOLF0:USTF0_20250819
["timestamp","ask_amount","ask_price","bid_price","bid_amount"]
[1755599030186,3.12,181.72,181.62,5.5033]
[1755599030384,3.12,181.72,181.61,3.63786818]
[1755599030588,3.12,181.72,181.65,5.5024]
[1755599031984,3.12,181.75,181.66,5.5021]
[1755599032884,3.12,181.75,181.65,5.5023]
[1755599034090,3.12,181.75,181.64,9.14046818]
[1755599034284,3.12,181.75,181.61,3.63786818]
[1755599034488,2.99,181.73,181.61,3.63786818]
[1755599035090,2.99,181.73,181.62,5.5033]
[1755599036382,2.99,181.73,181.63,5.503]
[1755599038284,2.99,181.73,181.64,5.5026]
[1755599040089,2.99,181.73,181.65,5.5023]
[1755599040295,2.99,181.76,181.64,3.63786818]
[1755599040588,2.99,181.76,181.67,3.63786818]
[1755599041091,2.99,181.76,181.68,5.5014]
[1755599042694,2.99,181.76,181.67,3.63786818]
[1755599045595,2.99,181.76,181.67,9.13966818]
[1755599049392,6.10290654,181.82,181.67,3.63786818]
[1755599049599,2.99,181.8,181.67,3.63786818]
[1755599049801,2.99,181.8,181.6,11.0079]
[1755599049802,2.99,181.8,181.7,3.63786818]
[1755599049990,2.99,181.8,181.71,5.5005]
[1755599050291,4.34825167,181.79,181.67,3.63786818]
[1755599050498,2.99,181.78,181.69,5.5012]
[1755599050691,2.99,181.78,181.67,3.63786818]
[1755599051096,2.99,181.78,181.68,5.5014]
[1755599051594,2.99,181.78,181.67,9.13956818]
[1755599051799,4.34801052,181.77,181.64,3.63786818]
[1755599051994,2.99,181.75,181.64,3.63786818]
[1755599052198,2.99,181.75,181.66,5.5021]
[1755599055597,2.99,181.75,181.64,3.63786818]
[1755599055598,2.99,181.75,181.67,5.5018]
[1755599060206,2.99,181.75,181.66,5.502]
[1755599061205,2.99,181.75,181.65,5.5023]
[1755599061499,2.99,181.75,181.64,3.63786818]
[1755599061803,2.99,181.75,181.65,5.5022]
[1755599062606,2.99,181.75,181.66,5.5021]
[1755599067414,2.99,181.75,181.67,5.5018]
[1755599067808,2.99,181.75,181.69,5.5011]
[1755599068006,2.99,181.75,181.67,9.76996539]
[1755599068407,9.74077472,181.82,181.67,9.76996539]
[1755599068614,2.94,181.78,181.67,9.76996539]
[1755599068807,4.36806859,181.77,181.67,9.76996539]
[1755599069009,2.94,181.78,181.69,5.5011]
[1755599069210,4.36806686,181.77,181.69,5.5011]
[1755599069412,2.94,181.78,181.69,5.5011]
[1755599069604,4.3679518,181.77,181.69,5.5011]
[1755599069810,2.94,181.78,181.7,5.5008]
[1755599070008,4.36761466,181.77,181.7,5.5008]
[1755599070207,2.94,181.78,181.7,5.5008]
[1755599071208,2.94,181.78,181.7,9.13866818]
[1755599071402,2.94,181.78,181.71,5.5005]
[1755599072817,2.94,181.78,181.72,5.5003]
[1755599073018,2.94,181.78,181.7,3.63786818]
[1755599073322,2.94,181.81,181.73,9.13776818]
[1755599073523,4.36423549,181.8,181.73,9.13776818]
[1755599073816,2.94,181.81,181.73,9.13776818]
[1755599074009,4.36441898,181.8,181.73,9.13776818]
[1755599074215,2.94,181.81,181.74,5.4996]
[1755599074419,4.36428685,181.8,181.74,5.4996]
[1755599074613,2.94,181.81,181.74,5.4996]
[1755599074811,4.36382318,181.8,181.74,5.4996]
[1755599075023,2.94,181.81,181.74,5.4996]
[1755599076626,2.94,181.81,181.73,9.13776818]
[1755599077620,2.94,181.81,181.73,3.63786818]
[1755599078419,2.94,181.81,181.7,9.13866818]
[1755599078822,6.10290654,181.85,181.7,9.13866818]
[1755599078823,4.3609096,181.8,181.7,9.13866818]
[1755599079027,2.94,181.79,181.7,9.13866818]
[1755599079726,2.94,181.79,181.7,3.63786818]
[1755599080422,4.36129951,181.78,181.7,3.63786818]
[1755599080621,9.74077472,181.83,181.7,3.63786818]
[1755599080622,2.94,181.77,181.7,3.63786818]
[1755599080926,2.94,181.77,181.67,3.63786818]
[1755599081525,2.94,181.77,181.68,5.5013]
[1755599083121,2.94,181.77,181.67,3.63786818]
[1755599083323,2.94,181.75,181.66,5.502]
[1755599084727,2.94,181.75,181.65,11.63439721]
[1755599085228,2.94,181.75,181.65,5.5023]
[1755599087529,2.94,181.75,181.66,5.5021]
[1755599092527,2.94,181.75,181.64,9.76996539]
[1755599092732,3.18,181.73,181.61,131.11298466]
[1755599093231,3.18,181.73,181.64,5.5026]
[1755599094932,3.18,181.73,181.65,5.5024]
[1755599095127,3.18,181.73,181.62,6.13209721]
[1755599095629,3.18,181.73,181.65,5.5024]
[1755599096132,3.18,181.73,181.66,5.5021]
[1755599099831,3.18,181.73,181.61,131.11298466]
[1755599100239,4.38941574,181.72,181.61,121.34301927]
[1755599100440,3.18,181.7,181.56,6.13209721]
[1755599100734,3.18,181.68,181.56,9.76996539]
[1755599100937,3.18,181.68,181.6,5.504]
[1755599101136,3.18,181.68,181.56,9.76996539]
[1755599101337,3.18,181.68,181.59,3.63786818]
[1755599101539,3.18,181.71,181.59,9.76996539]
[1755599101738,3.18,181.71,181.59,3.63786818]
[1755599101930,3.18,181.71,181.63,5.5031]
[1755599102236,3.18,181.71,181.59,9.76996539]
[1755599102537,3.18,181.71,181.62,3.63786818]
[1755599102934,3.18,181.71,181.64,5.5026]
[1755599106635,3.18,181.71,181.59,9.76996539]
[1755599106841,3.63786818,181.69,181.55,9.76996539]
[1755599107040,3.18,181.68,181.55,9.76996539]
[1755599107545,3.18,181.68,181.56,6.13209721]
[1755599107740,3.18,181.68,181.58,3.63786818]
[1755599107942,3.18,181.68,181.61,5.5037]
[1755599108951,3.18,181.68,181.6,5.5039]
[1755599110150,3.18,181.68,181.61,5.5037]
[1755599111640,3.18,181.68,181.58,3.63786818]
[1755599112052,3.18,181.73,181.64,5.5026]
[1755599113443,3.18,181.73,181.65,5.5025]
[1755599113851,3.18,181.73,181.61,3.63786818]
[1755599114451,3.18,181.73,181.66,5.5022]
[1755599114847,3.18,181.73,181.61,3.63786818]
[1755599115242,3.18,181.73,181.65,5.5023]
[1755599117646,3.18,181.73,181.61,3.63786818]
[1755599118454,3.18,181.73,181.64,3.63786818]
[1755599119052,3.18,181.73,181.67,5.5019]
[1755599119250,3.18,181.73,181.64,3.63786818]
[1755599119450,3.18,181.73,181.66,5.5021]
[1755599120049,3.18,181.73,181.64,9.14036818]
[1755599120648,3.18,181.73,181.61,3.63786818]
[1755599121454,3.18,181.73,181.63,5.503]
[1755599122257,3.18,181.73,181.61,3.63786818]
[1755599122258,3.18,181.73,181.64,5.5028]
[1755599122962,3.18,181.73,181.63,5.503]
[1755599123150,4.3890493,181.72,181.63,5.503]
[1755599123356,3.18,181.73,181.63,5.503]
[1755599123560,2.94,181.71,181.63,5.503]
[1755599126453,2.94,181.71,181.64,5.5028]
[1755599126654,2.94,181.71,181.61,3.63786818]
[1755599127159,2.94,181.71,181.64,5.5026]
[1755599127663,2.94,181.74,181.64,3.63786818]
[1755599127863,2.94,181.72,181.64,3.63786818]
[1755599129155,2.94,181.72,181.66,5.502]
[1755599130560,2.94,181.72,181.66,5.5021]
[1755599131361,2.94,181.72,181.67,5.5019]
[1755599131564,2.94,181.71,181.67,5.5019]
[1755599135765,2.94,181.71,181.66,5.5021]
[1755599135963,2.94,181.77,181.64,9.76996539]
[1755599136165,2.94,181.75,181.64,3.63786818]
[1755599136464,2.94,181.73,181.65,5.5024]
[1755599136964,2.94,181.73,181.66,5.5022]
[1755599137163,2.94,181.73,181.64,3.63786818]
[1755599137860,2.94,181.72,181.64,9.76996539]
[1755599138865,2.94,181.72,181.68,5.5014]
[1755599139161,2.94,181.72,181.64,9.76996539]
[1755599139468,2.94,181.75,181.67,3.63786818]
[1755599139860,2.94,181.75,181.69,5.5011]
[1755599144570,2.94,181.75,181.68,5.5016]
[1755599145274,2.94,181.75,181.67,9.13976818]
[1755599146069,2.94,181.75,181.67,5.5019]
[1755599146567,2.94,181.75,181.66,9.14006818]
[1755599146766,2.94,181.73,181.62,3.63786818]
[1755599147073,2.94,181.71,181.62,3.63786818]
[1755599147571,2.94,181.71,181.6,6.13209721]
[1755599147770,2.94,181.71,181.61,5.5036]
[1755599148065,2.94,181.69,181.59,9.76996539]
[1755599148270,2.94,181.69,181.61,5.5037]
[1755599150672,2.94,181.69,181.62,5.5035]
[1755599151769,2.94,181.69,181.59,9.76996539]
[1755599151966,6.10290654,181.76,181.62,3.63786818]
[1755599152170,2.94,181.73,181.62,3.63786818]
[1755599152369,4.41295561,181.72,181.62,3.63786818]
[1755599152571,4.41295561,181.71,181.65,5.5024]
[1755599152870,2.94,181.73,181.65,5.5024]
[1755599153071,4.41295561,181.72,181.65,5.5024]
[1755599153272,7.37295561,181.71,181.65,5.5024]
[1755599153470,2.96,181.71,181.65,5.5024]
[1755599153668,2.96,181.71,181.64,5.5028]
[1755599153870,2.96,181.71,181.62,3.63786818]
[1755599154772,2.96,181.71,181.63,5.5031]
[1755599156673,2.96,181.71,181.64,5.5029]
[1755599157676,2.96,181.71,181.65,5.5025]
[1755599157870,2.96,181.71,181.65,3.63786818]
[1755599158178,2.96,181.75,181.67,5.5018]
[1755599160684,2.96,181.75,181.68,5.5016]
[1755599161282,2.96,181.75,181.67,5.5019]
[1755599161490,2.96,181.75,181.64,6.13209721]
[1755599161682,2.96,181.75,181.63,3.63786818]
[1755599161683,2.96,181.73,181.63,9.76996539]
[1755599161987,2.96,181.73,181.64,5.5027]
[1755599162488,2.96,181.73,181.63,3.63786818]
[1755599162686,2.96,181.73,181.66,5.5023]
[1755599163488,2.96,181.73,181.65,5.5025]
[1755599163984,3.63786818,181.77,181.66,3.63786818]
[1755599164187,7.35387967,181.76,181.69,3.63786818]
[1755599164386,2.96,181.76,181.69,3.63786818]
[1755599165388,2.96,181.76,181.68,5.5016]
[1755599165691,2.96,181.76,181.69,5.5013]
[1755599168589,2.96,181.76,181.7,5.501]
[1755599170288,2.96,181.76,181.69,5.5013]
[1755599170490,2.96,181.76,181.67,3.63786818]
[1755599170895,2.96,181.76,181.68,5.5015]
[1755599174098,2.96,181.76,181.67,9.13976818]
[1755599174999,2.96,181.76,181.68,5.5016]
[1755599175895,2.96,181.8,181.69,5.5013]
[1755599176090,2.96,181.78,181.69,5.5013]
[1755599177302,2.96,181.78,181.68,5.5016]
[1755599179007,4.38999987,181.77,181.68,5.5016]
[1755599179209,2.96,181.76,181.68,5.5016]
[1755599181309,2.96,181.76,181.69,5.5013]
[1755599182209,2.96,181.76,181.71,5.5007]
[1755599182411,2.96,181.76,181.7,3.63786818]
[1755599183209,2.96,181.76,181.72,5.5004]
[1755599183913,2.96,181.76,181.7,9.13866818]
[1755599184107,2.96,181.76,181.67,6.13209721]
[1755599184108,2.96,181.76,181.67,3.63786818]
[1755599185715,2.96,181.76,181.68,5.5015]
[1755599188513,2.96,181.76,181.67,9.13976818]
[1755599189819,2.96,181.76,181.67,3.63786818]
[1755599192324,2.96,181.76,181.69,5.5012]
[1755599193322,2.96,181.76,181.68,5.5015]
[1755599193523,2.96,181.76,181.67,3.63786818]
[1755599195017,2.96,181.76,181.67,9.13986818]
[1755599196620,2.96,181.76,181.67,3.63786818]
[1755599197715,6.59786818,181.76,181.65,6.13209721]
[1755599197918,6.59786818,181.76,181.62,6.13209721]
[1755599197919,3.05,181.74,181.62,6.13209721]
[1755599198115,3.05,181.72,181.61,9.76996539]
[1755599198623,3.05,181.72,181.63,5.503]
[1755599199321,3.05,181.72,181.62,11.63539721]
[1755599199516,3.05,181.72,181.62,5.5033]
[1755599200121,3.05,181.72,181.61,9.76996539]
[1755599200319,4.38805369,181.71,181.61,9.14156818]
[1755599200524,4.38805369,181.7,181.61,9.14156818]
[1755599200722,3.05,181.72,181.61,3.63786818]
[1755599200921,3.05,181.7,181.61,3.63786818]
[1755599201227,3.63786818,181.73,181.61,3.63786818]
[1755599201228,4.38899514,181.69,181.61,3.63786818]
[1755599201425,3.05,181.68,181.61,3.63786818]
[1755599202028,3.05,181.68,181.61,9.14156818]
[1755599202224,3.05,181.68,181.61,3.63786818]
[1755599202524,3.05,181.68,181.6,127.93853066]
[1755599202927,3.05,181.68,181.6,122.43453066]
[1755599203226,3.05,181.68,181.61,5.5037]
[1755599203426,3.05,181.68,181.6,122.43453066]
[1755599204027,3.05,181.68,181.62,5.5035]
[1755599204429,3.05,181.72,181.61,3.63786818]
[1755599204631,3.05,181.7,181.62,5.5033]
[1755599206031,3.05,181.7,181.63,5.5031]
[1755599206726,3.05,181.7,181.62,5.5034]
[1755599211530,3.05,181.7,181.6,122.43453066]
[1755599211724,3.05,181.68,181.53,6.13209721]
[1755599211924,3.05,181.66,181.53,9.76996539]
[1755599212126,4.37610648,181.65,181.56,5.5052]
[1755599212332,3.05,181.64,181.56,5.5052]
[1755599213034,3.05,181.64,181.55,5.5055]
[1755599213231,3.05,181.64,181.53,3.63786818]
[1755599213837,3.05,181.64,181.56,5.5053]
[1755599214035,3.05,181.64,181.53,3.63786818]
[1755599214935,3.05,181.64,181.54,5.5057]
[1755599215336,3.05,181.64,181.53,9.14396818]
[1755599215729,3.05,181.64,181.53,3.63786818]
[1755599216741,3.05,181.64,181.56,5.5052]
[1755599217132,3.09,181.66,181.56,3.63786818]
[1755599217433,3.09,181.66,181.58,5.5045]
[1755599217632,3.09,181.66,181.56,3.63786818]
[1755599217838,3.09,181.66,181.59,3.63786818]
[1755599218139,3.09,181.66,181.6,5.5038]
[1755599218732,3.09,181.66,181.61,5.5038]
[1755599218939,3.09,181.66,181.59,3.63786818]
[1755599219342,3.09,181.66,181.6,5.504]
[1755599220248,3.09,181.66,181.59,9.14216818]
[1755599220738,3.09,181.66,181.59,3.63786818]
[1755599221334,3.09,181.71,181.59,3.63786818]
[1755599221540,3.09,181.71,181.55,62.0]
[1755599221541,3.09,181.71,181.62,3.63786818]
[1755599223042,3.09,181.71,181.65,5.5026]
[1755599223941,3.09,181.71,181.63,5.5029]
[1755599226533,3.09,181.71,181.62,3.63786818]
[1755599226739,3.09,181.74,181.65,3.63786818]
[1755599227742,3.09,181.74,181.66,5.5022]
[1755599228143,3.09,181.74,181.65,3.63786818]
[1755599228543,3.09,181.74,181.65,9.14036818]
[1755599231340,3.09,181.74,181.65,3.63786818]
[1755599233550,6.72786818,181.78,181.65,3.63786818]
[1755599233744,3.09,181.78,181.68,9.13926818]
[1755599236052,3.09,181.78,181.69,5.5013]
[1755599236254,3.09,181.78,181.68,3.63786818]
[1755599236852,3.09,181.78,181.69,5.5013]
[1755599237754,3.09,181.78,181.68,3.63786818]
[1755599243061,3.09,181.78,181.65,62.0]
[1755599243062,3.09,181.78,181.71,3.63786818]
[1755599243759,2.87,181.85,181.74,3.63786818]
[1755599243964,2.87,181.83,181.74,3.63786818]
[1755599244866,2.87,181.83,181.74,9.13766818]
[1755599245169,2.87,181.83,181.74,3.63786818]
[1755599245465,2.87,181.83,181.75,5.4995]
[1755599245865,2.87,181.83,181.74,3.63786818]
[1755599246067,2.87,181.83,181.74,9.13766818]
[1755599246455,2.87,181.83,181.75,3.63786818]
[1755599248464,3.63786818,181.89,181.75,3.63786818]
[1755599248663,2.87,181.88,181.78,3.63786818]
[1755599250365,2.87,181.88,181.75,3.63786818]
[1755599251870,2.87,181.87,181.75,3.63786818]
[1755599252071,2.87,181.84,181.72,118.86167456]
[1755599252867,2.87,181.84,181.73,3.63786818]
[1755599253070,2.87,181.84,181.75,5.4995]
[1755599253263,2.87,181.84,181.76,3.63786818]
[1755599256565,2.87,181.87,181.76,3.63786818]
[1755599257071,2.87,181.87,181.78,5.4986]
[1755599257664,2.87,181.87,181.79,3.63786818]
[1755599260469,0.95721418,181.96,181.79,3.63786818]
[1755599260771,6.50786818,181.92,181.79,3.63786818]
[1755599261073,2.87,181.9,181.79,3.63786818]
[1755599261275,2.87,181.9,181.77,3.63786818]
[1755599261675,3.63786818,181.89,181.77,3.63786818]
[1755599261972,2.87,181.88,181.77,3.63786818]
[1755599262371,2.87,181.88,181.75,5.4994]
[1755599262569,0.95697727,181.99,181.74,3.63786818]
[1755599262570,2.87,181.85,181.74,3.63786818]
[1755599262769,2.87,181.85,181.72,118.86167456]
[1755599262975,2.87,181.85,181.74,5.4998]
[1755599263665,2.87,181.85,181.75,5.4995]
[1755599263973,2.87,181.85,181.74,3.63786818]
[1755599264483,2.87,181.85,181.77,3.63786818]
[1755599264669,2.87,181.9,181.8,3.63786818]
[1755599264978,2.87,181.9,181.81,5.4976]
[1755599265879,2.87,181.9,181.8,9.13576818]
[1755599267679,2.87,181.9,181.8,3.63786818]
[1755599268480,4.37115071,181.89,181.8,3.63786818]
[1755599268678,2.87,181.9,181.8,3.63786818]
[1755599268879,4.37115071,181.89,181.8,3.63786818]
[1755599269080,2.87,181.88,181.8,3.63786818]
[1755599271183,2.87,181.88,181.8,9.13566818]
[1755599271984,2.87,181.93,181.8,3.63786818]
[1755599272186,4.3722623,181.92,181.8,3.63786818]
[1755599272386,7.2622623,181.91,181.83,3.63786818]
[1755599272586,2.89,181.91,181.83,3.63786818]
[1755599274383,8.99290654,181.97,181.83,3.63786818]
[1755599274686,2.89,181.95,181.83,3.63786818]
[1755599274889,2.89,181.93,181.83,3.63786818]
[1755599275083,2.89,181.91,181.83,3.63786818]
[1755599275483,2.89,181.91,181.83,9.13476818]
[1755599276990,2.89,181.94,181.86,3.63786818]
[1755599277394,2.89,181.94,181.87,5.4959]
[1755599279294,2.89,181.94,181.86,9.13396818]
[1755599280284,2.89,181.94,181.86,3.63786818]
[1755599283689,6.10290654,182.01,181.89,3.63786818]
[1755599283690,2.89,182.01,181.89,3.63786818]
[1755599283893,4.37367786,182.0,181.89,3.63786818]
[1755599284094,2.89,182.01,181.89,3.63786818]
[1755599284287,4.37338424,182.0,181.89,3.63786818]
[1755599284489,2.89,181.99,181.89,3.63786818]
[1755599285094,2.89,181.99,181.9,5.4949]
[1755599286496,2.89,181.99,181.89,9.13306818]
[1755599287094,2.89,181.99,181.89,3.63786818]
[1755599287298,2.89,181.99,181.9,5.4949]
[1755599288598,2.89,181.99,181.89,9.13306818]
[1755599289401,2.89,181.99,181.9,5.495]
[1755599292002,2.89,181.99,181.89,9.13306818]
[1755599292601,2.89,181.99,181.89,3.63786818]
[1755599292797,2.89,181.99,181.86,3.63786818]
[1755599293001,2.89,181.97,181.86,3.63786818]
[1755599293201,6.52786818,181.97,181.86,3.63786818]
[1755599293404,2.89,181.96,181.86,3.63786818]
[1755599294003,2.89,181.96,181.85,5.4964]
[1755599294803,2.89,181.96,181.84,5.4967]
[1755599295002,2.89,181.96,181.83,3.63786818]
[1755599295708,2.89,181.96,181.86,5.4961]
[1755599295906,2.89,181.96,181.83,3.63786818]
[1755599296205,2.89,181.96,181.85,5.4963]
[1755599301904,2.89,181.96,181.86,5.4962]
[1755599306602,2.89,181.96,181.86,3.63786818]
[1755599307207,2.89,181.96,181.88,5.4954]
[1755599308205,2.89,181.96,181.89,5.4953]
[1755599308405,2.89,181.96,181.86,3.63786818]
[1755599309222,2.89,181.96,181.83,3.63786818]
[1755599309710,4.3891164,181.95,181.83,3.63786818]
[1755599310011,2.99,181.94,181.83,3.63786818]
[1755599310210,2.99,181.94,181.85,5.4965]
[1755599311813,2.99,181.94,181.84,5.4967]
[1755599313412,3.63786818,181.92,181.79,68.13209721]
[1755599313621,2.99,181.91,181.77,3.63786818]
[1755599313919,2.99,181.88,181.78,5.4984]
[1755599314108,2.99,181.88,181.76,3.63786818]
[1755599314415,2.99,181.88,181.77,5.4988]
[1755599316705,2.99,181.88,181.76,9.13706818]
[1755599317810,2.99,181.88,181.75,5.4994]
[1755599318022,2.99,181.88,181.74,3.63786818]
[1755599319317,2.99,181.86,181.76,5.4992]
[1755599319520,2.99,181.84,181.76,5.4992]
[1755599322521,2.99,181.84,181.74,3.63786818]
[1755599323127,2.99,181.84,181.76,5.4991]
[1755599324428,2.99,181.84,181.74,3.63786818]
[1755599324429,2.99,181.84,181.75,5.4994]
[1755599325627,2.99,181.84,181.74,9.13756818]
[1755599327026,2.99,181.84,181.75,5.4995]
[1755599327226,2.99,181.84,181.74,3.63786818]
[1755599327626,2.99,181.84,181.76,5.4992]
[1755599327828,2.99,181.84,181.74,3.63786818]
[1755599328629,2.99,181.84,181.77,5.4987]
[1755599328834,2.99,181.84,181.74,3.63786818]
[1755599329433,2.99,181.84,181.76,5.499]
[1755599331026,2.99,181.84,181.75,5.4994]
[1755599331833,2.99,181.84,181.76,5.4992]
[1755599334539,2.99,181.84,181.75,5.4994]
[1755599336032,2.99,181.84,181.74,3.63786818]
[1755599336435,2.99,181.84,181.77,3.63786818]
[1755599340238,2.99,181.84,181.77,9.13676818]
[1755599340739,2.99,181.84,181.77,3.63786818]
[1755599341837,2.99,181.84,181.74,9.13766818]
[1755599342042,2.99,181.84,181.72,118.86167456]
[1755599342043,4.39873323,181.83,181.72,118.86167456]
[1755599342240,4.39873323,181.83,181.71,3.63786818]
[1755599342241,2.89,181.83,181.71,3.63786818]
[1755599342430,4.39850645,181.82,181.71,3.63786818]
[1755599342635,2.89,181.81,181.71,3.63786818]
[1755599342841,2.89,181.81,181.71,9.13856818]
[1755599343042,2.89,181.81,181.71,3.63786818]
[1755599343535,2.89,181.81,181.71,9.13856818]
[1755599343841,2.89,181.81,181.71,3.63786818]
[1755599344243,2.89,181.81,181.66,6.13209721]
[1755599344431,2.89,181.81,181.72,3.63786818]
[1755599344635,2.89,181.81,181.72,9.13826818]
[1755599345345,2.89,181.81,181.72,3.63786818]
[1755599345538,2.89,181.81,181.73,3.63786818]
[1755599345738,2.89,181.81,181.73,9.13796818]
[1755599346941,2.89,181.81,181.73,3.63786818]
[1755599349349,2.89,181.81,181.73,9.13796818]
[1755599349644,2.89,181.81,181.73,3.63786818]
[1755599350845,2.89,181.81,181.73,9.13796818]
[1755599352148,2.89,181.86,181.76,3.63786818]
[1755599353952,2.89,181.86,181.76,9.13696818]
[1755599354353,4.41253053,181.85,181.76,9.13696818]
[1755599354554,2.89,181.86,181.76,9.13696818]
[1755599354555,2.89,181.86,181.77,5.4988]
[1755599354756,4.41251205,181.85,181.77,5.4988]
[1755599354951,2.89,181.86,181.76,3.63786818]
[1755599355149,4.41250834,181.85,181.78,5.4986]
[1755599355449,2.89,181.86,181.78,5.4986]
[1755599355652,4.41654093,181.85,181.78,5.4986]
[1755599355850,2.89,181.86,181.78,5.4986]
[1755599356046,4.41654052,181.85,181.78,5.4986]
[1755599356250,2.89,181.86,181.78,5.4986]
[1755599356554,4.41674626,181.85,181.78,5.4986]
[1755599356949,4.42213635,181.84,181.78,5.4986]
[1755599357251,2.89,181.86,181.78,5.4986]
[1755599357447,4.42221939,181.85,181.79,3.63786818]
[1755599357654,2.89,181.86,181.79,3.63786818]
[1755599358350,2.89,181.86,181.82,3.63786818]
[1755599358753,2.89,181.86,181.82,9.13506818]
[1755599358952,2.89,181.89,181.82,9.13506818]
[1755599359451,2.89,181.89,181.82,3.63786818]
[1755599361052,2.89,181.89,181.82,9.13526818]
[1755599361257,2.89,181.89,181.8,3.63786818]
[1755599361553,2.89,181.87,181.8,3.63786818]
[1755599362956,2.89,181.87,181.83,3.63786818]
[1755599363456,3.15,181.96,181.83,3.63786818]
[1755599363647,3.15,181.94,181.83,3.63786818]
[1755599363850,7.11308611,181.93,181.83,3.63786818]
[1755599364048,3.15,181.91,181.83,3.63786818]
[1755599364247,3.15,181.89,181.83,3.63786818]
[1755599369559,3.15,181.89,181.8,3.63786818]
[1755599370068,3.15,181.89,181.79,9.13606818]
[1755599372069,3.15,181.89,181.79,3.63786818]
[1755599373470,3.15,181.87,181.76,3.63786818]
[1755599373671,3.15,181.87,181.76,9.13686818]
[1755599373963,3.15,181.87,181.76,3.63786818]
[1755599374568,3.15,181.87,181.78,5.4986]
[1755599377273,6.78786818,181.91,181.77,3.63786818]
[1755599377470,3.15,181.89,181.77,3.63786818]
[1755599377670,4.36578103,181.88,181.77,3.63786818]
[1755599377866,3.15,181.87,181.78,5.4984]
[1755599378069,3.15,181.87,181.77,3.63786818]
[1755599378373,3.15,181.87,181.77,9.13656818]
[1755599379373,3.15,181.87,181.78,5.4986]
[1755599379967,3.15,181.87,181.79,5.4983]
[1755599380161,3.15,181.87,181.77,3.63786818]
[1755599380368,3.15,181.85,181.76,5.499]
[1755599381272,3.15,181.85,181.75,5.4994]
[1755599381467,3.15,181.85,181.73,3.63786818]
[1755599381968,3.15,181.85,181.74,5.4996]
[1755599382274,3.15,181.85,181.73,3.63786818]
[1755599383175,3.15,181.85,181.75,5.4994]
[1755599384772,3.15,181.85,181.74,5.4998]
[1755599385075,3.15,181.83,181.73,3.63786818]
[1755599385476,3.15,181.83,181.73,9.13786818]
[1755599386578,3.15,181.83,181.74,5.4998]
[1755599395085,3.15,181.83,181.75,5.4995]
[1755599396991,3.15,181.83,181.74,5.4998]
[1755599400189,3.63786818,181.83,181.71,3.63786818]
[1755599400391,3.07,181.82,181.71,3.63786818]
[1755599400690,3.07,181.82,181.68,127.08087661]
[1755599400891,6.70786818,181.8,181.68,120.9487794]
[1755599401095,3.07,181.78,181.68,120.9487794]
[1755599401485,3.63786818,181.77,181.68,120.9487794]
[1755599401687,3.07,181.76,181.68,120.9487794]
[1755599403695,3.07,181.76,181.53,16.52]
[1755599403696,3.07,181.76,181.59,6.13209721]
[1755599403898,3.07,181.74,181.61,4.59489809]
[1755599404300,3.07,181.74,181.65,5.5025]
[1755599404588,3.07,181.74,181.63,3.63786818]
[1755599404897,3.07,181.74,181.67,5.5019]
[1755599406895,3.07,181.74,181.66,5.5022]
[1755599407095,3.07,181.74,181.64,3.63786818]
[1755599407796,3.07,181.73,181.61,4.59489809]
[1755599407994,3.07,181.73,181.61,0.95702991]
[1755599408195,3.63786818,181.8,181.61,5.5036]